[Event "42nd WALTON Women-ch Bangladesh 2024"]
[Site "Dhaka"]
[Date "2024.05.24"]
[Round "5.3"]
[White "Hamid, Rani"]
[Black "Nusrat Jahan, Alo"]
[Result "0-1"]
[ECO "B15"]
[WhiteElo "1863"]
[BlackElo "1850"]
[Annotator "NA RC"]
[PlyCount "52"]
[EventDate "2024.05.20"]
[EventType "tourn"]
[EventCountry "BAN"]
[SourceTitle "playchess.com"]
[Source "ChessBase"]
[SourceQuality "1"]
[TimeControl "40/5400+30:1800+30"]

1. e4 {[%emt 0:00:06]} c6 {[%emt 0:00:14]} 2. d4 {[%emt 0:00:07]} d5 {[%emt 0:00:06]} 3. Nc3 {[%emt 0:00:26]} dxe4 {[%emt 0:00:13]} 4. Nxe4 {[%emt 0:00:31]} Nf6 {[%emt 0:00:30]} 5. Nxf6+ {[%emt 0:00:17]} exf6 {[%emt 0:00:14]} 6. Nf3 {[%emt 0:00:29]} Bd6 {[%emt 0:00:24]} 7. Bd3 {[%emt 0:00:38]} O-O {[%emt 0:00:52]} 8. O-O {[%emt 0:00:15]} Re8 {[%emt 0:01:38] is more profitable than 8...Bg4 at the moment.} 9. c4 {[%emt 0:01:06] B15: Caro-Kann: 3 Nc3: 3...g6 and 3...dxe4 4 Nxe4 Nf6 5 Nxf6+ exf6.} Be6 {[%emt 0:04:23]} 10. Bd2 {[%emt 0:00:36]} Nd7 {[%emt 0:01:08]} 11. Bc3 $146 {[%emt 0:00:37]} ({Predecessor:} 11. h3 Nf8 12. Be3 Qd7 13. Qd2 Bxh3 14. gxh3 Qxh3 15. Qd1 g5 16. Re1 g4 17. Bf1 Qxf3 18. Qxf3 gxf3 {0-1 Gunasekara,A (1079)-Knight,C (1280) Perth op 2023 (7)}) 11... Nf8 {[%emt 0:02:32]} 12. b4 {[%emt 0:01:07]} (12. Qc2 $142) 12... Ng6 {[%emt 0:09:06]} 13. Re1 {[%emt 0:04:52]} Nf4 {[%emt 0:08:04]} 14. Bf1 {[%emt 0:00:04]} Qd7 {[%emt 0:01:32]} 15. Re3 {[%emt 0:06:02]} Rad8 {[%emt 0:05:45]} 16. Qd2 {[%emt 0:02:21]} Ng6 {[%emt 0:15:04]} 17. Qb2 {[%emt 0:06:09]} Bf4 {[%emt 0:06:01]} 18. Ree1 {[%emt 0:00:06]} Bg4 {[%emt 0:00:34]} 19. Be2 {[%emt 0:00:19]} Bb8 {[%emt 0:07:24]} 20. Qd2 {[%emt 0:09:40]} Nf4 {[%emt 0:04:06]} 21. Bd1 {[%emt 0:00:18]} Rxe1+ {[%emt 0:01:21]} 22. Nxe1 {[%emt 0:00:35] [#]} Bxd1 $1 {[%emt 0:01:27]} 23. Rxd1 {[%emt 0:03:34] [#]} Re8 $1 {[%emt 0:03:32]} 24. Qc2 $19 {[%emt 0:10:14]} (24. Kf1 Re2 25. Qxe2 Nxe2 26. Kxe2) 24... Re2 {[%emt 0:03:14]} 25. Qb3 {[%emt 0:05:41]} Qg4 {[%emt 0:05:12]} 26. Kf1 {[%emt 0:00:30]} Rxe1+ {[%emt 0:00:35]} 0-1

[Event "42nd WALTON Women-ch Bangladesh 2024"]
[Site "Dhaka"]
[Date "2024.05.24"]
[Round "5.4"]
[White "Neelava, Choudhury"]
[Black "Israt, Jahan Diba"]
[Result "1-0"]
[ECO "B78"]
[WhiteElo "1778"]
[BlackElo "1904"]
[Annotator "RC"]
[PlyCount "91"]
[EventDate "2024.05.20"]
[EventType "tourn"]
[EventCountry "BAN"]
[SourceTitle "playchess.com"]
[Source "ChessBase"]
[SourceQuality "1"]
[TimeControl "40/5400+30:1800+30"]

1. e4 {[%emt 0:05:44]} c5 {[%emt 0:00:07]} 2. Nf3 {[%emt 0:00:06]} d6 {[%emt 0:00:05]} 3. d4 {[%emt 0:00:20]} cxd4 {[%emt 0:00:07]} 4. Nxd4 {[%emt 0:00:07]} Nf6 {[%emt 0:00:06]} 5. Nc3 {[%emt 0:00:10]} g6 {[%emt 0:00:04]} 6. Be3 {[%emt 0:00:06]} Bg7 {[%emt 0:00:06]} 7. f3 {[%emt 0:00:18]} O-O {[%emt 0:00:08]} 8. Bc4 {[%emt 0:00:05]} Nc6 {[%emt 0:00:06]} 9. Qd2 {[%emt 0:00:04]} Bd7 {[%emt 0:00:06]} 10. O-O-O {[%emt 0:00:07]} Rc8 {[%emt 0:00:07]} 11. Bb3 {[%emt 0:00:07]} Nxd4 {[%emt 0:00:35]} 12. Bxd4 {[%emt 0:00:06]} b5 {[%emt 0:00:28]} 13. Nd5 {[%emt 0:00:06]} Nxd5 {[%emt 0:00:21]} 14. Bxg7 {[%emt 0:00:09]} Kxg7 {[%emt 0:00:05]} 15. exd5 {[%emt 0:00:07]} Kg8 {[%emt 0:00:33]} 16. Rhe1 {[%emt 0:05:11]} a5 {[%emt 0:00:52]} 17. a3 {[%emt 0:01:43]} b4 {[%emt 0:15:20]} 18. axb4 {[%emt 0:08:04]} axb4 {[%emt 0:06:39]} 19. Qxb4 {[%emt 0:00:46]} Rb8 {[%emt 0:00:43]} 20. Qd4 {[%emt 0:05:09]} Re8 {[%emt 0:06:08]} 21. Kd2 {[%emt 0:08:14]} Qa5+ {[%emt 0:03:20]} 22. Ke2 {[%emt 0:01:34]} Rb4 {[%emt 0:01:49]} 23. Qe3 {[%emt 0:03:55]} f5 {[%emt 0:21:29]} 24. Kf1 {[%emt 0:04:40]} f4 {[%emt 0:07:24]} 25. Qf2 {[%emt 0:02:04]} Kf7 {[%emt 0:03:28]} 26. Kg1 {[%emt 0:04:49]} g5 {[%emt 0:01:49]} 27. Qd2 {[%emt 0:05:53]} Qc5+ {[%emt 0:01:29]} 28. Kh1 {[%emt 0:01:36]} Bf5 {[%emt 0:01:53]} 29. Ra1 {[%emt 0:03:57]} Rg8 {[%emt 0:06:54]} 30. Ra4 {[%emt 0:03:37]} Rxa4 {[%emt 0:02:00]} 31. Bxa4 {[%emt 0:00:12]} Rb8 {[%emt 0:01:35]} 32. Bb3 {[%emt 0:01:26]} h5 {[%emt 0:00:55]} 33. Qe2 {[%emt 0:05:02]} Rb7 {[%emt 0:01:14]} 34. Bc4 {[%emt 0:00:50]} Qb4 {[%emt 0:03:45]} 35. Bb3 {[%emt 0:05:25]} Qd4 {[%emt 0:01:29]} 36. c3 {[%emt 0:01:55]} Qb6 {[%emt 0:04:57]} 37. Bc2 {[%emt 0:03:51]} Bxc2 {[%emt 0:06:19]} 38. Qxc2 {[%emt 0:00:06]} Qxb2 {[%emt 0:03:09]} 39. Qh7+ {[%emt 0:00:37]} Ke8 {[%emt 0:00:32]} 40. Qxh5+ {[%emt 0:00:11]} Kf8 {[%emt 0:01:00]} 41. Qxg5 {[%emt 0:33:16]} Qxc3 {[%emt 0:30:57]} 42. Qxf4+ {[%emt 0:00:15]} Ke8 {[%emt 0:00:20]} 43. Qe4 {[%emt 0:00:27]} Qf6 {[%emt 0:00:51]} 44. h3 {[%emt 0:01:01]} Rb2 {[%emt 0:00:00]} 45. Rb1 {[%emt 0:00:00]} Rxb1+ {[%emt 0:00:00]} 46. Qxb1 {[%emt 0:00:00]} 1-0

[Event "42nd WALTON Women-ch Bangladesh 2024"]
[Site "Dhaka"]
[Date "2024.05.24"]
[Round "5.5"]
[White "Kazi Zarin, Tasnim"]
[Black "Ahmed, Walijah"]
[Result "1/2-1/2"]
[ECO "B48"]
[WhiteElo "1854"]
[BlackElo "1878"]
[Annotator "NA RC"]
[PlyCount "71"]
[EventDate "2024.05.20"]
[EventType "tourn"]
[EventCountry "BAN"]
[SourceTitle "playchess.com"]
[Source "ChessBase"]
[SourceQuality "1"]
[TimeControl "40/5400+30:1800+30"]

1. e4 {[%emt 0:00:06]} c5 {[%emt 0:00:24]} 2. Nf3 {[%emt 0:00:06]} e6 {[%emt 0:00:04]} 3. d4 {[%emt 0:00:04]} cxd4 {[%emt 0:00:04]} 4. Nxd4 {[%emt 0:00:04]} Nc6 {[%emt 0:00:04]} 5. Nc3 {[%emt 0:00:46]} Qc7 {[%emt 0:00:06]} 6. Be3 {[%emt 0:00:05]} a6 {[%emt 0:00:05]} 7. Qd2 {[%emt 0:00:22]} Nf6 {[%emt 0:00:34]} 8. f4 {[%emt 0:00:33] B48: Sicilian: Taimanov: 5 Nc3 Qc7 6 Be3 a6 without Be2.} Bb4 {[%emt 0:00:46]} 9. Bd3 {[%emt 0:00:11]} Na5 {[%emt 0:00:19]} 10. a3 {[%emt 0:00:12]} Bxc3 {[%emt 0:00:15]} 11. Qxc3 {[%emt 0:00:06]} Qxc3+ {[%emt 0:00:04]} 12. bxc3 {[%emt 0:00:05]} d5 {[%emt 0:00:31]} 13. exd5 {[%emt 0:00:24]} exd5 {[%emt 0:00:05]} 14. Nb3 {[%emt 0:00:19]} Nc4 {[%emt 0:00:35]} 15. Bd4 {[%emt 0:00:13]} Ne4 {[%emt 0:01:51]} 16. Nc5 {[%emt 0:03:17]} Nxc5 {[%emt 0:03:54]} 17. Bxc5 {[%emt 0:02:12]} Bd7 {[%emt 0:01:46]} 18. Bxc4 {[%emt 0:01:10]} dxc4 {[%emt 0:00:29]} 19. O-O-O {[%emt 0:00:07]} O-O-O {[%emt 0:08:33]} 20. Bb6 {[%emt 0:00:25]} Rde8 {[%emt 0:00:16]} 21. Rd4 {[%emt 0:00:11]} Re6 {[%emt 0:01:18]} 22. Rxc4+ {[%emt 0:00:09]} Rc6 {[%emt 0:00:40]} 23. Rxc6+ {[%emt 0:01:13]} bxc6 {[%emt 0:03:10]} 24. Bd4 {[%emt 0:11:08]} Re8 {[%emt 0:05:46]} 25. Kd2 {[%emt 0:02:10]} Be6 {[%emt 0:09:51]} 26. Re1 {[%emt 0:16:53]} Rd8 {[%emt 0:07:13]} 27. Re5 {[%emt 0:09:01]} g6 {[%emt 0:07:02]} 28. Ke3 {[%emt 0:12:15]} Rd5 {[%emt 0:13:41]} 29. Rxd5 {[%emt 0:02:54]} cxd5 {[%emt 0:02:40]} 30. Bc5 {[%emt 0:03:52]} Kb7 {[%emt 0:00:25]} 31. Kd4 {[%emt 0:00:32]} Kc6 {[%emt 0:00:36]} 32. Bb4 {[%emt 0:05:17]} h5 {[%emt 0:06:08]} 33. Ke5 {[%emt 0:07:56]} Kb5 {[%emt 0:03:30]} 34. Kd4 {[%emt 0:00:07]} Kc6 $11 {[%emt 0:01:36]} 35. Ke5 {[%emt 0:05:05]} Kb5 {[%emt 0:00:55]} 36. Kd4 {[%emt 0:07:12]} 1/2-1/2

[Event "42nd WALTON Women-ch Bangladesh 2024"]
[Site "Dhaka"]
[Date "2024.05.24"]
[Round "5.6"]
[White "Sultana, Sharmin Shirin"]
[Black "Noshin, Anjum"]
[Result "0-1"]
[ECO "E02"]
[WhiteElo "1927"]
[BlackElo "2025"]
[Annotator "RC"]
[PlyCount "90"]
[EventDate "2024.05.20"]
[EventType "tourn"]
[EventCountry "BAN"]
[SourceTitle "playchess.com"]
[Source "ChessBase"]
[SourceQuality "1"]
[TimeControl "40/5400+30:1800+30"]

1. d4 {[%emt 0:04:02]} d5 {[%emt 0:00:09]} 2. Nf3 {[%emt 0:01:04]} Nf6 {[%emt 0:00:08]} 3. c4 {[%emt 0:00:08]} e6 {[%emt 0:00:07]} 4. g3 {[%emt 0:10:04]} dxc4 {[%emt 0:07:42]} 5. Qa4+ {[%emt 0:02:46]} Bd7 {[%emt 0:08:59]} 6. Qxc4 {[%emt 0:00:24]} Bc6 {[%emt 0:00:12]} 7. Bg2 {[%emt 0:00:28]} Nbd7 {[%emt 0:03:43]} 8. Nc3 {[%emt 0:03:12]} Nb6 {[%emt 0:05:42]} 9. Qd3 {[%emt 0:02:25]} Bb4 {[%emt 0:00:26]} 10. O-O {[%emt 0:10:19]} O-O {[%emt 0:03:56]} 11. Bg5 {[%emt 0:06:34]} h6 {[%emt 0:01:25]} 12. Bxf6 {[%emt 0:02:42]} Qxf6 {[%emt 0:00:07]} 13. e4 {[%emt 0:00:18]} Rfd8 {[%emt 0:02:14]} 14. Rfd1 {[%emt 0:16:12]} a6 {[%emt 0:09:00]} 15. Ne5 {[%emt 0:10:51]} Be8 {[%emt 0:03:29]} 16. Qe3 {[%emt 0:07:29]} c5 {[%emt 0:25:30]} 17. Ng4 {[%emt 0:05:39]} Qe7 {[%emt 0:00:25]} 18. d5 {[%emt 0:02:12]} Nc4 {[%emt 0:02:24]} 19. Qc1 {[%emt 0:00:57]} Qg5 {[%emt 0:05:30]} 20. Ne3 {[%emt 0:02:34]} Nxe3 {[%emt 0:01:47]} 21. Qxe3 {[%emt 0:00:02]} Qxe3 {[%emt 0:00:20]} 22. fxe3 {[%emt 0:00:01]} e5 {[%emt 0:02:07]} 23. a3 {[%emt 0:02:30]} Bxc3 {[%emt 0:02:02]} 24. bxc3 {[%emt 0:00:02]} Ba4 {[%emt 0:01:43]} 25. Rd2 {[%emt 0:01:06]} Bb3 {[%emt 0:03:59]} 26. Rb1 {[%emt 0:00:10]} c4 {[%emt 0:00:06]} 27. Rf1 {[%emt 0:01:33]} Rd6 {[%emt 0:01:13]} 28. h4 {[%emt 0:02:21]} b5 {[%emt 0:00:51]} 29. Rdf2 {[%emt 0:01:46]} Ra7 {[%emt 0:00:57]} 30. Bh3 {[%emt 0:00:52]} a5 {[%emt 0:00:40]} 31. Rc1 {[%emt 0:01:31]} Kf8 {[%emt 0:03:25]} 32. Bf1 {[%emt 0:01:59]} Ke7 {[%emt 0:00:49]} 33. Be2 {[%emt 0:01:29]} Rf6 {[%emt 0:00:52]} 34. Rg2 {[%emt 0:00:26]} Kd6 {[%emt 0:01:04]} 35. g4 {[%emt 0:00:46]} Kc5 {[%emt 0:01:58]} 36. g5 {[%emt 0:00:03]} Rd6 {[%emt 0:00:24]} 37. gxh6 {[%emt 0:00:58]} gxh6 {[%emt 0:00:36]} 38. Bh5 {[%emt 0:00:45]} b4 {[%emt 0:00:30]} 39. axb4+ {[%emt 0:00:14]} axb4 {[%emt 0:00:05]} 40. Rg8 {[%emt 0:00:28]} bxc3 {[%emt 0:00:48]} 41. Rc8+ {[%emt 0:06:48]} Kb5 {[%emt 0:02:40]} 42. Rb8+ {[%emt 0:19:13]} Rb6 {[%emt 0:00:24]} 43. Rxb6+ {[%emt 0:00:33]} Kxb6 {[%emt 0:00:06]} 44. Rxc3 {[%emt 0:00:30]} Ra1+ {[%emt 0:00:57]} 45. Kf2 {[%emt 0:00:17]} Kc5 {[%emt 0:00:09]} 0-1

[Event "42nd WALTON Women-ch Bangladesh 2024"]
[Site "Dhaka"]
[Date "2024.05.25"]
[Round "6.1"]
[White "Wadifa, Ahmed"]
[Black "Noshin, Anjum"]
[Result "1/2-1/2"]
[ECO "C44"]
[WhiteElo "1921"]
[BlackElo "2025"]
[Annotator "RC"]
[PlyCount "58"]
[EventDate "2024.05.20"]
[EventType "tourn"]
[EventCountry "BAN"]
[SourceTitle "playchess.com"]
[Source "ChessBase"]
[SourceQuality "1"]
[TimeControl "40/5400+30:1800+30"]

1. e4 {[%emt 0:00:22]} e5 {[%emt 0:00:08]} 2. Nf3 {[%emt 0:00:11]} Nc6 {[%emt 0:00:12]} 3. c3 {[%emt 0:00:45]} d5 {[%emt 0:01:48]} 4. Qa4 {[%emt 0:00:24]} f6 {[%emt 0:01:13]} 5. Bb5 {[%emt 0:02:37]} Nge7 {[%emt 0:00:16]} 6. d3 {[%emt 0:07:42]} a6 {[%emt 0:03:50]} 7. exd5 {[%emt 0:10:06]} Qxd5 {[%emt 0:06:03]} 8. Bc4 {[%emt 0:00:08]} b5 {[%emt 0:00:44]} 9. Bxd5 {[%emt 0:00:57]} bxa4 {[%emt 0:00:06]} 10. Bc4 {[%emt 0:03:43]} Na5 {[%emt 0:01:20]} 11. Nbd2 {[%emt 0:01:18]} Nxc4 {[%emt 0:06:11]} 12. Nxc4 {[%emt 0:00:02]} Bb7 {[%emt 0:00:30]} 13. Ke2 {[%emt 0:07:24]} Ng6 {[%emt 0:05:20]} 14. Re1 {[%emt 0:07:46]} O-O-O {[%emt 0:01:31]} 15. Be3 {[%emt 0:04:50]} Be7 {[%emt 0:19:21]} 16. Red1 {[%emt 0:11:12]} Rd7 {[%emt 0:02:33]} 17. b3 {[%emt 0:00:44]} axb3 {[%emt 0:08:53]} 18. axb3 {[%emt 0:00:07]} Rhd8 {[%emt 0:00:09]} 19. Na5 {[%emt 0:11:22]} e4 {[%emt 0:04:32]} 20. dxe4 {[%emt 0:01:00]} Rxd1 {[%emt 0:00:13]} 21. Rxd1 {[%emt 0:00:04]} Rxd1 {[%emt 0:00:08]} 22. Kxd1 {[%emt 0:00:02]} Bxe4 {[%emt 0:00:13]} 23. Ne1 {[%emt 0:02:15]} Nh4 {[%emt 0:04:43]} 24. g3 {[%emt 0:02:52]} Nf5 {[%emt 0:03:43]} 25. Kd2 {[%emt 0:01:12]} g5 {[%emt 0:02:48]} 26. Nd3 {[%emt 0:03:24]} Nxe3 {[%emt 0:10:27]} 27. Kxe3 {[%emt 0:00:10]} f5 {[%emt 0:00:41]} 28. f3 {[%emt 0:01:39]} Bxd3 {[%emt 0:04:18]} 29. Kxd3 {[%emt 0:00:04]} Kd7 {[%emt 0:13:06]} 1/2-1/2

[Event "42nd WALTON Women-ch Bangladesh 2024"]
[Site "Dhaka"]
[Date "2024.05.25"]
[Round "6.2"]
[White "Ahmed, Walijah"]
[Black "Sultana, Sharmin Shirin"]
[Result "0-1"]
[ECO "C77"]
[WhiteElo "1878"]
[BlackElo "1927"]
[Annotator "NA RC"]
[PlyCount "90"]
[EventDate "2024.05.20"]
[EventType "tourn"]
[EventCountry "BAN"]
[SourceTitle "playchess.com"]
[Source "ChessBase"]
[SourceQuality "1"]
[TimeControl "40/5400+30:1800+30"]

1. e4 {[%emt 0:00:07]} e5 {[%emt 0:00:44]} 2. Nf3 {[%emt 0:00:07]} Nc6 {[%emt 0:00:03]} 3. Bb5 {[%emt 0:00:31]} a6 {[%emt 0:00:06]} 4. Ba4 {[%emt 0:00:04]} Nf6 {[%emt 0:00:24]} 5. d3 {[%emt 0:01:42]} b5 {[%emt 0:00:58]} 6. Bb3 {[%emt 0:00:04]} Bc5 {[%emt 0:00:08]} 7. c3 {[%emt 0:01:57] is currently scoring better than 7.0-0.} Bb6 {[%emt 0:04:03] C77: Ruy Lopez: 3...a6 4 Ba4 Nf6, unusual lines.} 8. h3 {[%emt 0:02:21]} d6 {[%emt 0:03:01]} 9. O-O {[%emt 0:02:47]} O-O {[%emt 0:01:11]} 10. Nbd2 {[%emt 0:00:51]} h6 {[%emt 0:13:55]} 11. Re1 {[%emt 0:02:45]} Re8 {[%emt 0:02:37]} 12. Nf1 {[%emt 0:00:53]} Ne7 {[%emt 0:05:55]} 13. a4 {[%emt 0:08:10]} Rb8 {[%emt 0:00:23]} 14. Ng3 {[%emt 0:01:19]} Ng6 {[%emt 0:13:37]} 15. axb5 {[%emt 0:20:45]} axb5 {[%emt 0:00:08]} 16. Qc2 $146 {[%emt 0:02:41]} ({Predecessor:} 16. d4 c5 17. Bc2 cxd4 18. cxd4 Bb7 19. Be3 exd4 20. Bxd4 Rc8 21. Bd3 Bxd4 22. Nxd4 {½-½ Korobov,A (2658)-Praggnanandhaa,R (2738) FIDE Grand Swiss 2023 (10)}) 16... Nh7 {[%emt 0:13:47]} 17. d4 {[%emt 0:07:46]} Ng5 {[%emt 0:06:39]} 18. Nxg5 {[%emt 0:11:26]} hxg5 {[%emt 0:00:03]} 19. Qe2 {[%emt 0:00:17]} Be6 {[%emt 0:09:16]} ({Better is} 19... Nf4 $15 20. Qd1 (20. Qxb5 exd4 21. cxd4 Bd7 $17) 20... c5) 20. d5 {[%emt 0:07:32]} Bd7 {[%emt 0:00:27]} 21. Bc2 {[%emt 0:00:23]} (21. Be3 $11) 21... Nf4 {[%emt 0:01:52]} 22. Qf3 {[%emt 0:02:33]} g6 {[%emt 0:02:37]} 23. Nf1 {[%emt 0:02:00]} (23. Ne2 $15) 23... Kg7 {[%emt 0:03:48]} 24. Nh2 {[%emt 0:02:17]} Rh8 {[%emt 0:02:09]} 25. Be3 {[%emt 0:04:10]} Ra8 {[%emt 0:09:51]} 26. Bxb6 {[%emt 0:05:42]} cxb6 {[%emt 0:00:02]} 27. Bd3 {[%emt 0:00:42]} Bxh3 {[%emt 0:00:57]} 28. Bf1 {[%emt 0:01:40]} Bd7 {[%emt 0:00:35]} 29. g3 {[%emt 0:04:02]} Nh5 {[%emt 0:02:00]} 30. Ng4 {[%emt 0:01:44]} Qc8 {[%emt 0:02:37]} 31. Ne3 {[%emt 0:00:26]} Nf6 {[%emt 0:00:40]} 32. Nc2 {[%emt 0:02:55]} (32. Bg2 $17 {was worth a try.}) 32... Rh6 {[%emt 0:01:12]} 33. Bg2 {[%emt 0:00:55]} Bg4 {[%emt 0:00:31]} 34. Qe3 {[%emt 0:00:24]} Rxa1 {[%emt 0:00:34]} 35. Rxa1 {[%emt 0:00:03]} Bh3 {[%emt 0:00:18]} 36. Qf3 $2 {[%emt 0:02:14]} (36. Bf3 $17) 36... b4 {[%emt 0:00:45]} 37. Nxb4 {[%emt 0:00:36]} g4 {[%emt 0:00:25]} 38. Bxh3 {[%emt 0:00:38]} Rxh3 {[%emt 0:00:09]} 39. Qg2 {[%emt 0:00:40]} Nh7 {[%emt 0:00:30]} 40. Nc6 {[%emt 0:01:40]} Ng5 {[%emt 0:00:16]} 41. Kf1 {[%emt 0:30:21]} Qh8 {[%emt 0:03:16]} 42. Ke2 {[%emt 0:00:00]} Rh2 {[%emt 0:07:57]} 43. Qg1 {[%emt 0:00:00]} Nxe4 $19 {[%emt 0:02:07]} 44. Kd3 {[%emt 0:00:00]} Rh1 {[%emt 0:04:23]} 45. Qg2 {[%emt 0:00:00]} Nc5+ {[%emt 0:16:04]} 0-1

[Event "42nd WALTON Women-ch Bangladesh 2024"]
[Site "Dhaka"]
[Date "2024.05.25"]
[Round "6.3"]
[White "Israt, Jahan Diba"]
[Black "Kazi Zarin, Tasnim"]
[Result "0-1"]
[ECO "C54"]
[WhiteElo "1904"]
[BlackElo "1854"]
[Annotator "RC"]
[PlyCount "108"]
[EventDate "2024.05.20"]
[EventType "tourn"]
[EventCountry "BAN"]
[SourceTitle "playchess.com"]
[Source "ChessBase"]
[SourceQuality "1"]
[TimeControl "40/5400+30:1800+30"]

1. e4 {[%emt 0:00:02]} e5 {[%emt 0:00:36]} 2. Nf3 {[%emt 0:00:08]} Nc6 {[%emt 0:00:16]} 3. Bc4 {[%emt 0:00:08]} Bc5 {[%emt 0:00:22]} 4. c3 {[%emt 0:00:09]} Nf6 {[%emt 0:00:12]} 5. d4 {[%emt 0:00:06]} exd4 {[%emt 0:00:06]} 6. e5 {[%emt 0:00:04]} d5 {[%emt 0:00:05]} 7. Bb5 {[%emt 0:00:05]} Ne4 {[%emt 0:00:05]} 8. cxd4 {[%emt 0:00:08]} Bb6 {[%emt 0:00:05]} 9. Nc3 {[%emt 0:00:17]} O-O {[%emt 0:00:08]} 10. a4 {[%emt 0:00:26]} a5 {[%emt 0:01:06]} 11. Be3 {[%emt 0:01:34]} Ne7 {[%emt 0:00:38]} 12. Bd3 {[%emt 0:03:35]} f5 {[%emt 0:00:33]} 13. exf6 {[%emt 0:02:20]} Nxf6 {[%emt 0:00:11]} 14. Ne5 {[%emt 0:03:59]} Nf5 {[%emt 0:05:44]} 15. O-O {[%emt 0:13:43]} Nxe3 {[%emt 0:08:47]} 16. fxe3 {[%emt 0:00:09]} c6 {[%emt 0:02:00]} 17. Qc2 {[%emt 0:07:50]} Bc7 {[%emt 0:11:30]} 18. h3 {[%emt 0:10:03]} Qe7 {[%emt 0:14:57]} 19. e4 {[%emt 0:06:20]} Bxe5 {[%emt 0:16:19]} 20. dxe5 {[%emt 0:01:02]} Nxe4 {[%emt 0:04:02]} 21. Nxe4 {[%emt 0:01:01]} dxe4 {[%emt 0:02:05]} 22. Bxe4 {[%emt 0:00:29]} Rxf1+ {[%emt 0:07:53]} 23. Rxf1 {[%emt 0:00:10]} h6 {[%emt 0:00:05]} 24. Qc3 {[%emt 0:07:14]} Be6 {[%emt 0:00:56]} 25. Rf3 {[%emt 0:02:55]} Qb4 {[%emt 0:03:08]} 26. Qe3 {[%emt 0:25:12]} Qxb2 {[%emt 0:04:02]} 27. Rg3 {[%emt 0:01:20]} Kh8 {[%emt 0:01:26]} 28. Qc5 {[%emt 0:03:39]} Qb4 {[%emt 0:01:09]} 29. Qd6 {[%emt 0:05:13]} Qxd6 {[%emt 0:03:15]} 30. exd6 {[%emt 0:00:03]} Rd8 {[%emt 0:00:44]} 31. Rd3 {[%emt 0:00:29]} g5 {[%emt 0:00:46]} 32. Rc3 {[%emt 0:02:55]} Rxd6 {[%emt 0:00:21]} 33. Rc5 {[%emt 0:01:03]} Rd1+ {[%emt 0:02:18]} 34. Kf2 {[%emt 0:00:17]} Bd5 {[%emt 0:01:13]} 35. Bxd5 {[%emt 0:01:09]} Rxd5 {[%emt 0:04:02]} 36. Rxd5 {[%emt 0:00:22]} cxd5 {[%emt 0:00:04]} 37. Ke3 {[%emt 0:00:35]} Kg7 {[%emt 0:00:01]} 38. Kd4 {[%emt 0:00:13]} Kf6 {[%emt 0:00:08]} 39. Kxd5 {[%emt 0:00:27]} Kf5 {[%emt 0:00:02]} 40. g3 {[%emt 0:01:09]} g4 {[%emt 0:01:06]} 41. h4 {[%emt 0:30:11]} h5 {[%emt 0:30:44]} 42. Kd4 {[%emt 0:00:23]} Ke6 {[%emt 0:01:59]} 43. Ke4 {[%emt 0:02:52]} Kd6 {[%emt 0:00:26]} 44. Kd4 {[%emt 0:00:00]} Kc6 {[%emt 0:00:00]} 45. Kc4 {[%emt 0:00:00]} b6 {[%emt 0:00:00]} 46. Kb3 {[%emt 0:00:00]} Kd5 {[%emt 0:00:00]} 47. Kc3 {[%emt 0:00:00]} Kc5 {[%emt 0:00:00]} 48. Kb3 {[%emt 0:00:00]} Kd4 {[%emt 0:00:00]} 49. Kb2 {[%emt 0:00:00]} Kc4 {[%emt 0:00:00]} 50. Ka3 {[%emt 0:00:00]} Kc3 {[%emt 0:00:00]} 51. Ka2 {[%emt 0:00:00]} Kb4 {[%emt 0:00:00]} 52. Kb2 {[%emt 0:00:00]} Kxa4 {[%emt 0:00:00]} 53. Ka2 {[%emt 0:00:00]} Kb4 {[%emt 0:00:00]} 54. Kb2 {[%emt 0:00:00]} Kc4 {[%emt 0:00:00]} 0-1

[Event "42nd WALTON Women-ch Bangladesh 2024"]
[Site "Dhaka"]
[Date "2024.05.25"]
[Round "6.4"]
[White "Nusrat Jahan, Alo"]
[Black "Neelava, Choudhury"]
[Result "1-0"]
[ECO "C54"]
[WhiteElo "1850"]
[BlackElo "1778"]
[Annotator "NA RC"]
[PlyCount "94"]
[EventDate "2024.05.20"]
[EventType "tourn"]
[EventCountry "BAN"]
[SourceTitle "playchess.com"]
[Source "ChessBase"]
[SourceQuality "1"]
[TimeControl "40/5400+30:1800+30"]

1. e4 {[%emt 0:00:09]} e5 {[%emt 0:00:12]} 2. Nf3 {[%emt 0:00:21]} Nc6 {[%emt 0:03:19]} 3. Bc4 {[%emt 0:00:12]} Bc5 {[%emt 0:00:09]} 4. c3 {[%emt 0:00:13]} Nf6 {[%emt 0:00:09]} 5. d4 {[%emt 0:00:17]} exd4 {[%emt 0:00:06]} 6. e5 {[%emt 0:00:05]} d5 {[%emt 0:00:47]} 7. Bb5 {[%emt 0:00:14]} Ne4 {[%emt 0:01:19]} 8. cxd4 {[%emt 0:00:15]} Bb4+ {[%emt 0:00:07]} 9. Bd2 {[%emt 0:00:05]} Nxd2 {[%emt 0:00:08]} 10. Nbxd2 {[%emt 0:00:06]} O-O {[%emt 0:01:42]} 11. O-O {[%emt 0:01:31]} Bg4 {[%emt 0:05:26] C54: Giuoco Piano: 4 c3 Nf6, main lines with 5 d4 and 5 d3.} 12. h3 {[%emt 0:05:33]} Bh5 {[%emt 0:01:30]} 13. Bxc6 {[%emt 0:05:02]} bxc6 {[%emt 0:03:02]} 14. Qc2 {[%emt 0:05:02]} Rb8 {[%emt 0:05:06]} 15. a3 {[%emt 0:05:18]} Bxd2 {[%emt 0:05:19]} 16. Nxd2 {[%emt 0:00:55]} Qh4 {[%emt 0:07:21]} 17. Qc3 {[%emt 0:07:46]} Rfe8 {[%emt 0:03:43]} 18. Rfe1 {[%emt 0:11:34]} Re6 {[%emt 0:05:46]} 19. Nb3 {[%emt 0:09:02]} Rg6 {[%emt 0:09:51] [#]} (19... f5 $1 $14) 20. Re3 $1 {[%emt 0:23:54]} f5 {[%emt 0:07:16]} 21. Rg3 {[%emt 0:01:13]} f4 {[%emt 0:05:19]} 22. Rxg6 {[%emt 0:00:05]} hxg6 {[%emt 0:00:56]} 23. f3 {[%emt 0:04:02]} Qg3 {[%emt 0:04:34]} 24. Rf1 {[%emt 0:06:17]} g5 {[%emt 0:07:20]} 25. Nc5 {[%emt 0:00:41]} Bg6 {[%emt 0:05:56]} 26. b4 $2 {[%emt 0:02:04]} (26. Nd7 $18 {is more deadly.} Rb5 27. a4 (27. Qxc6 {is a self mate.} Rxb2 28. Nf6+ gxf6 29. Qxd5+ Kh7 30. Qd7+ Kh6)) 26... Bf5 {[%emt 0:03:34]} 27. Qe1 {[%emt 0:00:09]} Qxe1 {[%emt 0:01:44]} 28. Rxe1 {[%emt 0:00:02]} Kf7 {[%emt 0:00:56]} 29. Rc1 {[%emt 0:00:35]} Rb6 {[%emt 0:01:02]} 30. Rc3 {[%emt 0:00:43]} Ke7 {[%emt 0:01:16]} 31. Kf2 {[%emt 0:01:32]} Rb8 {[%emt 0:01:56]} 32. Nb3 {[%emt 0:02:06]} Rb6 {[%emt 0:01:28]} 33. g4 {[%emt 0:03:03]} Bd7 {[%emt 0:02:04]} 34. Rc1 {[%emt 0:01:10]} Rb8 {[%emt 0:01:37]} 35. Re1 {[%emt 0:01:51]} Rh8 {[%emt 0:01:38]} 36. Kg2 {[%emt 0:02:33]} Kf7 {[%emt 0:02:04]} 37. Rc1 {[%emt 0:01:03]} Rb8 {[%emt 0:00:14]} 38. Nc5 {[%emt 0:00:57]} Ke7 {[%emt 0:01:21]} 39. e6 {[%emt 0:00:15]} Be8 {[%emt 0:00:39]} 40. Re1 {[%emt 0:00:20]} Rd8 {[%emt 0:01:16]} 41. Re5 {[%emt 0:30:18]} Kf6 {[%emt 0:31:08]} 42. Rf5+ {[%emt 0:01:26]} Kg6 {[%emt 0:00:12]} 43. e7 {[%emt 0:00:00]} Rc8 {[%emt 0:00:00]} 44. Rf8 {[%emt 0:00:00]} Ra8 $18 {[%emt 0:00:00]} 45. Ne6 {[%emt 0:00:00]} Rc8 {[%emt 0:00:00]} 46. Nd8 {[%emt 0:00:00]} Bd7 {[%emt 0:00:00]} 47. e8=Q+ {[%emt 0:00:00]} Bxe8 {[%emt 0:00:00]} 1-0